bitfinex/quotes_BTCUSD_20250714
["timestamp","ask_amount","ask_price","bid_price","bid_amount"]
[1752502869207,0.5082958,121630.0,121620.0,0.00015292]
[1752502869468,0.17384158,121630.0,121620.0,0.00015292]
[1752502869676,0.51651732,121630.0,121620.0,0.00015292]
[1752502870093,0.68095104,121630.0,121620.0,0.00015292]
[1752502870305,0.67272979,121630.0,121620.0,0.00015292]
[1752502870487,0.68872979,121630.0,121620.0,0.00015292]
[1752502871577,1.03066263,121630.0,121620.0,0.00015292]
[1752502871782,0.82528841,121630.0,121620.0,0.00015292]
[1752502872203,0.69620841,121630.0,121620.0,0.00015292]
[1752502872622,0.82528841,121630.0,121620.0,0.00015292]
[1752502873226,0.69620841,121630.0,121620.0,0.00015292]
[1752502873423,0.81706689,121630.0,121620.0,0.00015292]
[1752502874056,0.68798689,121630.0,121620.0,0.00015292]
[1752502874265,0.81706689,121630.0,121620.0,0.00015292]
[1752502874728,0.68798689,121630.0,121620.0,0.00015292]
[1752502874931,0.82528834,121630.0,121620.0,0.00015292]
[1752502875355,0.66907641,121630.0,121620.0,0.00015292]
[1752502875564,0.51533213,121630.0,121620.0,0.00015292]
[1752502875782,0.43134218,121630.0,121620.0,0.00015292]
[1752502876616,0.44778447,121630.0,121620.0,0.00015292]
[1752502876830,0.62866068,121630.0,121620.0,0.00015292]
[1752502877104,0.97867261,121630.0,121620.0,0.00015292]
[1752502877302,1.10771261,121630.0,121620.0,0.00015292]
[1752502877507,1.18902995,121630.0,121620.0,0.00015292]
[1752502877711,0.72553573,121630.0,121620.0,0.00015292]
[1752502877921,0.85457573,121630.0,121620.0,0.00015292]
[1752502878563,0.65814215,121630.0,121620.0,0.00015292]
[1752502878778,0.52088056,121630.0,121620.0,0.00015292]
[1752502878987,0.43134218,121630.0,121620.0,0.00015292]
[1752502879197,0.43956322,121630.0,121620.0,0.00015292]
[1752502879632,0.4477844,121630.0,121620.0,0.00015292]
[1752502879836,0.62866034,121630.0,121620.0,0.00015292]
[1752502880047,0.71819912,121630.0,121620.0,0.00015292]
[1752502880247,0.70997754,121630.0,121620.0,0.00015292]
[1752502880663,0.52088056,121630.0,121620.0,0.00015292]
[1752502880907,0.52910174,121630.0,121620.0,0.00015292]
[1752502881297,0.5455445,121630.0,121620.0,0.00015292]
[1752502881497,0.53732305,121630.0,121620.0,0.00015292]
[1752502881830,0.52910174,121630.0,121620.0,0.00015292]
[1752502882033,0.53732305,121630.0,121620.0,0.00015292]
[1752502882257,0.70997761,121630.0,121620.0,0.00015292]
[1752502882474,0.71819913,121630.0,121620.0,0.00015292]
[1752502882708,0.8538756,121630.0,121620.0,0.00015292]
[1752502882939,0.7248356,121630.0,121620.0,0.00015292]
[1752502883158,0.8538756,121630.0,121620.0,0.00015292]
[1752502884406,1.05928982,121630.0,121620.0,0.00015292]
[1752502884621,1.39928982,121630.0,121620.0,0.00015292]
[1752502884832,1.52832982,121630.0,121620.0,0.00015292]
[1752502885883,1.39928982,121630.0,121620.0,0.00015292]
[1752502886097,1.53032982,121630.0,121620.0,0.00015292]
[1752502886315,1.40128982,121630.0,121620.0,0.00015292]
[1752502886527,1.0658356,121630.0,121620.0,0.00015292]
[1752502886766,1.1948756,121630.0,121620.0,0.00015292]
[1752502887262,1.53232982,121630.0,121620.0,0.00015292]
[1752502887915,1.40328982,121630.0,121620.0,0.00015292]
[1752502888354,1.53964982,121630.0,121620.0,0.00015292]
[1752502888572,0.89526985,121600.0,121590.0,0.0004]
[1752502888776,1.0579343,121600.0,121590.0,0.00048374]
[1752502888998,1.1869743,121600.0,121590.0,0.00048374]
[1752502889200,1.0579343,121600.0,121590.0,0.00048374]
[1752502889409,1.19126019,121600.0,121590.0,0.00048374]
[1752502889620,1.40222019,121600.0,121590.0,0.00048374]
[1752502890052,1.53126019,121600.0,121590.0,0.00048374]
[1752502890266,1.55593642,121600.0,121590.0,0.00048374]
[1752502890479,2.04123642,121600.0,121590.0,0.00048374]
[1752502890743,2.04123642,121600.0,121590.0,0.00148374]
[1752502890999,0.01645202,121560.0,121550.0,0.0002]
[1752502891212,0.97374538,121560.0,121550.0,0.00035275]
[1752502891439,0.96551947,121560.0,121550.0,0.00035275]
[1752502891651,0.78453924,121560.0,121550.0,0.00035275]
[1752502891864,0.64751741,121560.0,121550.0,0.00035275]
[1752502892074,0.77655741,121560.0,121550.0,0.00035275]
[1752502892327,0.99231184,121560.0,121550.0,0.00035275]
[1752502892541,1.12135184,121560.0,121550.0,0.00035275]
[1752502892763,1.10489982,121560.0,121550.0,0.00035275]
[1752502892986,0.97585941,121560.0,121550.0,0.00035275]
[1752502893211,0.44068239,121560.0,121550.0,0.00135275]
[1752502893437,0.74347597,121560.0,121550.0,0.01695275]
[1752502893699,0.62266262,121560.0,121550.0,0.00035275]
[1752502893931,0.75170262,121560.0,121550.0,0.00035275]
[1752502894132,0.83201996,121560.0,121550.0,0.00035275]
[1752502894346,1.16647418,121560.0,121550.0,0.00035275]
[1752502894566,1.03743418,121560.0,121550.0,0.00035275]
[1752502894789,0.52199973,121560.0,121550.0,0.00035275]
[1752502895016,0.44068239,121560.0,121550.0,0.00035275]
[1752502895258,0.44068239,121560.0,121550.0,0.03305275]
[1752502895896,0.41580133,121560.0,121550.0,0.03305275]
[1752502896550,0.41680133,121560.0,121550.0,0.03305275]
[1752502896771,0.41680133,121560.0,121550.0,0.01655275]
[1752502897009,0.49012714,121560.0,121550.0,0.01655275]
[1752502897217,0.49012714,121560.0,121550.0,0.00035275]
[1752502897218,1.02010231,121560.0,121550.0,0.00035275]
[1752502897446,1.02010231,121560.0,121550.0,0.00135275]
[1752502897655,0.50466799,121560.0,121550.0,0.00135275]
[1752502897868,0.63370799,121560.0,121550.0,0.00035275]
[1752502898090,0.52353813,121560.0,121550.0,0.00035275]
[1752502898296,0.66080404,121560.0,121550.0,0.00035275]
[1752502898510,0.65257813,121560.0,121550.0,0.00035275]
[1752502898720,0.51531229,121560.0,121550.0,0.00035275]
[1752502898928,0.51631229,121560.0,121550.0,0.03205275]
[1752502899143,0.33545422,121560.0,121550.0,0.03205275]
[1752502899589,0.33445422,121560.0,121550.0,0.03205275]
[1752502900268,0.33445422,121560.0,121550.0,0.03305275]
[1752502901541,0.45502012,121560.0,121550.0,0.00135275]
[1752502901745,0.44679394,121560.0,121550.0,0.00135275]
[1752502901958,0.51062686,121560.0,121550.0,0.00135275]
[1752502902167,0.51885284,121560.0,121550.0,0.00135275]
[1752502902368,0.50240095,121560.0,121550.0,0.00135275]
[1752502902583,0.50240095,121560.0,121550.0,0.00035275]
[1752502902807,0.49417517,121560.0,121550.0,0.00035275]
[1752502903012,0.33445422,121540.0,121530.0,0.12904]
[1752502903220,0.33445422,121540.0,121530.0,0.00051093]
[1752502903640,0.33445422,121550.0,121530.0,0.12955093]
[1752502903873,0.33445422,121550.0,121540.0,0.12904]
[1752502904119,0.33445422,121560.0,121540.0,0.12904]
[1752502904341,0.33445422,121560.0,121530.0,0.50051093]
[1752502904546,0.33445422,121570.0,121540.0,0.14911516]
[1752502904755,0.33445422,121570.0,121550.0,0.08134711]
[1752502904961,0.33445422,121570.0,121560.0,0.12904]
[1752502905424,0.33445422,121570.0,121550.0,0.34]
[1752502905624,0.09779494,121590.0,121550.0,0.34]
[1752502905625,0.33445422,121560.0,121550.0,0.34]
[1752502905995,0.33445422,121560.0,121550.0,0.16064]
[1752502906201,0.33445422,121560.0,121550.0,0.50064]
[1752502906424,0.33245422,121560.0,121550.0,0.50064]
[1752502906627,0.33245422,121560.0,121550.0,0.50264]
[1752502907467,0.33245422,121560.0,121550.0,0.3736]
[1752502907832,0.36569964,121560.0,121550.0,0.002]
[1752502908424,0.33245422,121560.0,121550.0,0.002]
[1752502908622,0.42834218,121560.0,121550.0,0.002]
[1752502908835,0.43656802,121560.0,121550.0,0.002]
[1752502909272,0.43656802,121560.0,121540.0,0.12904]
[1752502909478,0.66690844,121550.0,121530.0,0.03321093]
[1752502909692,0.21099392,121560.0,121540.0,0.12904]
[1752502909899,0.12728796,121560.0,121540.0,0.12904]
[1752502910105,0.13651374,121560.0,121540.0,0.12904]
[1752502910333,0.14373972,121560.0,121540.0,0.12904]
[1752502910562,0.09784711,121550.0,121530.0,0.00051093]
[1752502910771,0.12950667,121550.0,121530.0,0.13155093]
[1752502910984,0.33445422,121540.0,121530.0,0.12955093]
[1752502911193,0.41580133,121540.0,121530.0,0.00051093]
[1752502911609,0.43225579,121540.0,121530.0,0.00051093]
[1752502911828,0.45427896,121540.0,121530.0,0.00051093]
[1752502912030,0.43782436,121540.0,121530.0,0.00051093]
[1752502912238,0.44605169,121540.0,121530.0,0.00051093]
[1752502912577,0.43782436,121540.0,121530.0,0.12955093]
[1752502912810,0.43159723,121540.0,121530.0,0.00051093]
[1752502913028,0.41880133,121540.0,121530.0,0.00051093]
[1752502913228,0.41880133,121540.0,121530.0,0.12955093]
[1752502913448,0.41880133,121540.0,121530.0,0.00051093]
[1752502913664,0.41880133,121540.0,121530.0,0.03331093]
[1752502913665,0.003,121540.0,121530.0,0.03331093]
[1752502913861,0.33445422,121540.0,121530.0,0.37331093]
[1752502914057,0.33445422,121540.0,121530.0,0.50235093]
[1752502914466,0.33445422,121540.0,121530.0,0.37331093]
[1752502914681,0.33445422,121540.0,121530.0,0.37231093]
[1752502914928,0.33445422,121540.0,121530.0,0.50135093]
[1752502915928,0.33445422,121540.0,121530.0,0.37231093]
[1752502916104,0.001,121540.0,121530.0,0.50135093]
[1752502916484,0.001,121540.0,121530.0,0.03231093]
[1752502916681,0.001,121540.0,121530.0,0.16135093]
[1752502916896,0.33445422,121540.0,121530.0,0.16135093]
[1752502917309,0.33445422,121540.0,121530.0,0.16435093]
[1752502917712,0.33445422,121540.0,121530.0,0.03531093]
[1752502918163,0.00822578,121560.0,121530.0,0.16431093]
[1752502918363,0.33445422,121540.0,121530.0,0.16431093]
[1752502918733,0.33445422,121540.0,121530.0,0.03531093]
[1752502918932,0.33445422,121540.0,121530.0,0.132]
[1752502919347,0.33445422,121540.0,121530.0,0.003]
[1752502919880,0.33445422,121540.0,121530.0,0.132]
[1752502920089,0.33445422,121540.0,121530.0,0.003]
[1752502920294,0.33445422,121540.0,121530.0,0.132]
[1752502920513,0.38114947,121540.0,121530.0,0.003]
[1752502920716,0.57785954,121540.0,121530.0,0.003]
[1752502921056,0.56963227,121540.0,121530.0,0.003]
[1752502921270,0.58024385,121540.0,121530.0,0.003]
[1752502921472,0.01454085,121530.0,121520.0,0.129]
[1752502921650,0.34899507,121530.0,121520.0,0.00015309]
[1752502921906,0.34899507,121530.0,121520.0,0.12915309]
[1752502922106,0.35722294,121530.0,121520.0,0.00015309]
[1752502922316,0.34899507,121530.0,121520.0,0.12915309]
[1752502922526,0.34899507,121530.0,121520.0,0.00015309]
[1752502922947,0.34899507,121530.0,121520.0,0.12915309]
[1752502923219,0.34899507,121530.0,121520.0,0.00015309]
[1752502923713,0.41390752,121530.0,121520.0,0.00015309]
[1752502923946,0.57847593,121530.0,121520.0,0.00015309]
[1752502924198,0.65979327,121530.0,121520.0,0.00015309]
[1752502924421,0.55380283,121530.0,121520.0,0.00015309]
[1752502924641,0.53734654,121530.0,121520.0,0.00015309]
[1752502924859,0.54557455,121530.0,121520.0,0.00015309]
[1752502925107,0.41580133,121530.0,121520.0,0.00015309]
[1752502925331,0.33445422,121530.0,121520.0,0.12915309]
[1752502925775,0.33445422,121530.0,121520.0,0.00015309]
[1752502925990,0.41580133,121530.0,121520.0,0.12915309]
[1752502926202,0.49346638,121530.0,121520.0,0.00015309]
[1752502926404,0.52446304,121530.0,121520.0,0.12915309]
[1752502926589,0.50800723,121530.0,121520.0,0.12915309]
[1752502926944,0.51623504,121530.0,121520.0,0.12915309]
[1752502927159,0.48632601,121530.0,121520.0,0.00015309]
[1752502927366,0.49455422,121530.0,121520.0,0.12915309]
[1752502927934,0.48632682,121530.0,121520.0,0.00015309]
[1752502928152,0.65089523,121530.0,121520.0,0.00015309]
[1752502928363,0.47809847,121530.0,121520.0,0.00015309]
[1752502928570,0.55632508,121530.0,121520.0,0.00015309]
[1752502928775,0.72912191,121530.0,121520.0,0.00015309]
[1752502928980,0.85812191,121530.0,121520.0,0.00015309]
[1752502929400,0.72912191,121530.0,121520.0,0.00015309]
[1752502929595,0.85812191,121530.0,121520.0,0.00015309]
[1752502930232,0.84989383,121530.0,121520.0,0.00015309]
[1752502930501,0.66886879,121530.0,121520.0,0.00015309]
[1752502930723,0.5480966,121530.0,121520.0,0.00015309]
[1752502930940,0.33445422,121530.0,121520.0,0.00015309]
[1752502933920,0.33445422,121530.0,121500.0,0.35775309]
[1752502934128,0.33445422,121520.0,121510.0,0.0151]
[1752502934560,0.33445422,121520.0,121500.0,0.03190584]
[1752502934764,0.33445422,121510.0,121500.0,0.03190584]
[1752502934993,0.33445422,121510.0,121500.0,0.00150584]
[1752502935208,0.33445422,121510.0,121500.0,0.25950584]
[1752502935697,0.33445422,121510.0,121500.0,0.26050584]
[1752502936188,0.33445422,121510.0,121500.0,0.26250584]
[1752502936617,0.33445422,121510.0,121500.0,0.26350584]
[1752502936826,0.33445422,121510.0,121500.0,0.26050584]
[1752502937281,0.33445422,121510.0,121500.0,0.26350584]
[1752502940635,0.35065422,121510.0,121500.0,0.26350584]
[1752502941276,0.33445422,121510.0,121500.0,0.26350584]
[1752502941485,0.35005422,121510.0,121500.0,0.26350584]
[1752502941895,0.33445422,121510.0,121500.0,0.26350584]
[1752502943539,0.0313,121520.0,121500.0,0.26350584]
[1752502943746,0.33445422,121510.0,121500.0,0.26350584]
[1752502944431,0.35065422,121510.0,121500.0,0.26350584]
[1752502944637,0.36585422,121510.0,121500.0,0.26350584]
[1752502944846,0.36585422,121510.0,121500.0,0.26250584]
[1752502945167,0.35065422,121510.0,121500.0,0.26350584]
[1752502945411,0.15911297,121510.0,121500.0,0.26346584]
[1752502945646,0.44720133,121510.0,121500.0,0.25946584]
[1752502945880,0.44720133,121510.0,121500.0,0.26346584]
[1752502946110,0.44720133,121510.0,121480.0,0.02830584]
[1752502946333,0.33445422,121490.0,121480.0,0.02845871]
[1752502946554,0.32458741,121490.0,121480.0,0.02845871]
[1752502946771,0.32158741,121490.0,121480.0,0.02845871]
[1752502947255,0.32158741,121490.0,121480.0,0.28641871]
[1752502947467,0.13120564,121510.0,121490.0,0.34]
[1752502947468,0.12297627,121510.0,121490.0,0.34]
[1752502947690,0.12297627,121510.0,121500.0,0.25808]
[1752502948612,0.002,121530.0,121500.0,0.682528]
[1752502948801,0.002,121530.0,121510.0,0.08340455]
[1752502949032,0.33645422,121530.0,121520.0,0.0135]
[1752502949249,0.33645422,121530.0,121520.0,0.09484711]
[1752502949503,0.39591164,121530.0,121510.0,0.0135]
[1752502949696,0.68998133,121520.0,121480.0,0.0155]
[1752502949926,0.33445422,121490.0,121480.0,0.09684711]
[1752502950129,0.59277422,121490.0,121480.0,0.09684711]
[1752502950355,0.59277422,121490.0,121480.0,0.3555]
[1752502950574,0.59277422,121490.0,121480.0,0.01565287]
[1752502950841,0.25832,121490.0,121480.0,0.01565287]
[1752502951070,0.59277422,121490.0,121480.0,0.00215287]
[1752502951741,0.25832,121490.0,121480.0,0.00215287]
[1752502953961,0.25932,121490.0,121480.0,0.00215287]
[1752502955365,0.73265333,121490.0,121480.0,0.00215287]
[1752502955594,0.74719418,121490.0,121480.0,0.00215287]
[1752502955818,0.76365542,121490.0,121480.0,0.00215287]
[1752502956048,0.94473993,121490.0,121480.0,0.00215287]
[1752502956531,0.9033469,121490.0,121480.0,0.00215287]
[1752502956981,0.9023469,121490.0,121480.0,0.00215287]
[1752502957242,0.9053469,121490.0,121480.0,0.00215287]
[1752502957452,0.9023469,121490.0,121480.0,0.00215287]
[1752502957893,0.9063469,121490.0,121480.0,0.00215287]
[1752502958119,0.65321002,121490.0,121480.0,0.00215287]
[1752502958332,0.98766424,121490.0,121480.0,0.00215287]
[1752502958569,0.05669649,121470.0,121440.0,0.00180287]
[1752502958815,0.32458472,121450.0,121440.0,0.0018539]
[1752502959006,0.33990711,121460.0,121440.0,0.0018539]
[1752502959206,0.33445422,121450.0,121440.0,0.0018539]
[1752502959726,0.59301422,121460.0,121440.0,0.0018539]
[1752502960183,0.33445422,121450.0,121440.0,0.0018539]
[1752502960887,0.25856,121460.0,121440.0,0.0018539]
[1752502961156,0.33445422,121450.0,121440.0,0.0018539]
[1752502961863,0.25856,121460.0,121440.0,0.0018539]
[1752502962115,0.33445422,121450.0,121420.0,0.05067732]
[1752502962369,0.002,121470.0,121440.0,0.43694711]
[1752502962589,0.001,121450.0,121440.0,0.12968]
[1752502962847,0.001,121450.0,121440.0,0.08134711]
[1752502963080,0.002,121470.0,121440.0,0.11314711]
[1752502963319,0.001,121460.0,121450.0,0.08134711]
[1752502963562,0.33645422,121470.0,121450.0,0.08134711]
[1752502963795,0.33445422,121460.0,121440.0,0.0328]
[1752502964038,0.33445422,121450.0,121440.0,0.11414711]
[1752502964268,0.33445422,121450.0,121440.0,0.61414711]
[1752502964486,0.33445422,121460.0,121440.0,0.11414711]
[1752502964713,0.33445422,121460.0,121450.0,0.34]
[1752502965187,0.002,121470.0,121450.0,0.34]
[1752502965433,0.33545422,121460.0,121440.0,0.11314711]
[1752502965658,0.33545422,121460.0,121440.0,0.11520573]
[1752502965889,0.33745422,121460.0,121440.0,0.24476573]
[1752502966166,0.33645422,121460.0,121440.0,0.24270711]
[1752502966419,0.33445422,121460.0,121440.0,0.11314711]
[1752502966674,0.33445422,121460.0,121440.0,0.24472573]
[1752502966957,0.33445422,121460.0,121440.0,0.11314711]
[1752502967217,0.33445422,121460.0,121440.0,0.24472573]
[1752502967452,0.33445422,121460.0,121440.0,0.24262711]
[1752502967712,0.33445422,121460.0,121440.0,0.24258711]
[1752502967940,0.33445422,121460.0,121440.0,0.11314711]
[1752502968175,0.33545422,121460.0,121440.0,0.74464573]
[1752502968393,0.33545422,121460.0,121440.0,0.11314711]
[1752502968598,0.33545422,121460.0,121440.0,0.61520573]
[1752502968842,0.33545422,121460.0,121440.0,0.74258711]
[1752502969046,0.33545422,121460.0,121440.0,0.11314711]
[1752502969254,0.33545422,121460.0,121440.0,0.74464573]
[1752502969458,0.33545422,121460.0,121440.0,0.24258711]
[1752502969670,0.33545422,121460.0,121440.0,0.24254711]
[1752502969841,0.33545422,121460.0,121440.0,0.09704711]
[1752502970089,0.33545422,121460.0,121440.0,0.24440573]
[1752502970319,0.33545422,121460.0,121440.0,0.24234711]
[1752502970537,0.33545422,121460.0,121440.0,0.11294711]
[1752502970769,0.33545422,121460.0,121440.0,0.74436573]
[1752502970993,0.33545422,121460.0,121450.0,0.12936]
[1752502971258,0.33545422,121460.0,121440.0,0.08134711]
[1752502971461,0.33651329,121450.0,121430.0,0.154165]
[1752502971674,0.05747444,121460.0,121430.0,0.154165]
[1752502971675,0.33445422,121440.0,121430.0,0.154165]
[1752502971882,0.33445422,121440.0,121430.0,0.12952]
[1752502972831,0.33445422,121440.0,121420.0,0.50012619]
[1752502973035,0.33445422,121440.0,121430.0,0.12948]
[1752502973643,0.002,121430.0,121410.0,0.0154]
[1752502973869,0.002,121430.0,121420.0,0.5]
[1752502974284,0.002,121430.0,121420.0,0.49]
[1752502974493,0.001,121430.0,121420.0,0.49]
[1752502974711,0.001,121430.0,121420.0,0.12944]
[1752502974926,0.001,121430.0,121420.0,0.62944]
[1752502975142,0.001,121430.0,121420.0,0.63144]
[1752502975367,0.001,121430.0,121420.0,0.62944]
[1752502975798,0.002,121430.0,121420.0,0.63144]
[1752502977246,0.002,121430.0,121420.0,0.62944]
[1752502978675,0.002,121430.0,121420.0,0.5]
[1752502978891,0.002,121430.0,121420.0,0.62932]
[1752502980394,0.002,121430.0,121420.0,0.71050711]
[1752502980618,0.33645422,121430.0,121420.0,0.84]
[1752502980838,0.0158,121420.0,121410.0,0.00051154]
[1752502981060,0.35231329,121420.0,121410.0,0.00051154]
[1752502981281,0.36049706,121420.0,121410.0,0.00051154]
[1752502981540,0.37659706,121420.0,121410.0,0.12967154]
[1752502981777,0.51636185,121420.0,121410.0,0.00051154]
[1752502982214,0.54106845,121420.0,121410.0,0.00151154]
[1752502982438,0.70578682,121420.0,121410.0,0.00151154]
[1752502982655,0.54106932,121420.0,121410.0,0.00051154]
[1752502982872,0.80342898,121420.0,121360.0,20.16770009]
[1752502983102,0.80342898,121420.0,121360.0,20.2177502]
[1752502983103,0.33445422,121370.0,121360.0,20.2177502]
[1752502983315,0.33445422,121370.0,121360.0,20.12100309]
[1752502983526,0.0156,121390.0,121360.0,20.25016309]
[1752502983745,0.33445422,121380.0,121360.0,20.25016309]
[1752502983964,0.0156,121390.0,121360.0,20.21242279]
[1752502984189,0.35005422,121390.0,121370.0,0.00205981]
[1752502984412,0.33445422,121380.0,121370.0,0.00015316]
[1752502984627,0.33445422,121380.0,121370.0,0.12939316]
[1752502984838,0.33445422,121380.0,121370.0,0.00015316]
[1752502985051,0.33445422,121380.0,121370.0,0.46939316]
[1752502985283,0.36705422,121380.0,121370.0,0.00015316]
[1752502985509,0.44840133,121380.0,121370.0,0.00015316]
[1752502985728,0.44840133,121380.0,121370.0,0.00115316]
[1752502985942,0.35055422,121380.0,121370.0,0.00115316]
[1752502986151,0.33445422,121380.0,121370.0,0.00115316]
[1752502986597,0.44790133,121380.0,121370.0,0.00115316]
[1752502987040,0.44790133,121380.0,121370.0,0.13059316]
[1752502987259,0.44790133,121380.0,121370.0,0.00115316]
[1752502987473,0.4561393,121380.0,121370.0,0.00115316]
[1752502988106,0.44790133,121380.0,121370.0,0.00015316]
[1752502989664,0.36655422,121380.0,121370.0,0.00015316]
[1752502989879,0.0157,121390.0,121370.0,0.34015316]
[1752502990091,0.001,121380.0,121370.0,0.46955316]
[1752502990302,0.001,121380.0,121370.0,0.42150027]
[1752502990995,0.001,121380.0,121370.0,2.48538427]
[1752502991421,0.001,121380.0,121370.0,2.49948427]
[1752502991641,0.001,121380.0,121370.0,0.78198027]
[1752502991894,0.35155422,121410.0,121370.0,2.66354027]
[1752502992110,0.001,121390.0,121380.0,1.44895875]
[1752502992334,0.001,121390.0,121380.0,1.36833696]
[1752502992542,0.001,121390.0,121380.0,1.32900696]
[1752502992748,0.002,121410.0,121380.0,1.32900696]
[1752502992749,0.002,121410.0,121380.0,1.19952696]
[1752502992960,0.002,121410.0,121390.0,0.558718]
[1752502993195,0.33645422,121410.0,121390.0,0.64006511]
[1752502993408,0.33645422,121410.0,121400.0,0.46948]
[1752502993626,0.33645422,121410.0,121400.0,0.34]
[1752502993833,0.33645422,121410.0,121400.0,0.46948]
[1752502994275,0.35295422,121410.0,121400.0,0.46944]
[1752502994904,0.35295422,121410.0,121400.0,0.34]
[1752502994905,0.0185,121410.0,121400.0,0.34]
[1752502995116,0.35295422,121410.0,121400.0,0.46944]
[1752502995654,0.48539675,121410.0,121400.0,0.34]
[1752502995901,0.48543675,121410.0,121400.0,0.4694]
[1752502996134,0.45214133,121410.0,121400.0,0.4694]
[1752502996371,0.45214133,121410.0,121400.0,0.46936]
[1752502996597,0.45414133,121410.0,121400.0,0.46936]
[1752502997297,0.46237734,121410.0,121400.0,0.34]
[1752502997507,0.45414133,121410.0,121400.0,0.46936]
[1752502997722,0.45414133,121410.0,121400.0,0.46932]
[1752502999032,0.45414133,121410.0,121400.0,0.34]
[1752502999258,0.45414133,121410.0,121400.0,0.46932]
[1752502999480,0.45414133,121410.0,121400.0,0.12932]
[1752503001298,0.00604,121410.0,121400.0,0.12928]
[1752503001531,0.00604,121410.0,121390.0,0.50205947]
[1752503001756,0.00604,121410.0,121400.0,0.12916]
[1752503001981,0.33849422,121410.0,121400.0,0.12916]
[1752503002899,0.35439422,121410.0,121370.0,0.36275316]
[1752503003133,0.33445422,121390.0,121370.0,0.41884738]
[1752503003369,0.33445422,121390.0,121380.0,0.1292]
[1752503003658,0.00404,121410.0,121370.0,0.41884738]
[1752503004100,0.00404,121410.0,121380.0,0.13121964]
[1752503004101,0.33445422,121390.0,121380.0,0.00205964]
[1752503004299,0.00504,121410.0,121380.0,0.63125964]
[1752503004300,0.35559422,121410.0,121380.0,0.63125964]
[1752503004499,0.02114,121410.0,121380.0,0.6292]
[1752503004729,0.35559422,121410.0,121390.0,0.13129947]
[1752503004870,0.33949422,121410.0,121390.0,0.13129947]
[1752503005252,0.00404,121410.0,121390.0,0.13129947]
[1752503005458,0.33649422,121410.0,121390.0,0.13129947]
[1752503005891,0.00204,121410.0,121390.0,0.13129947]
[1752503006121,0.00204,121410.0,121390.0,0.08340658]
[1752503006355,0.33749422,121410.0,121400.0,0.1292]
[1752503007550,0.33749422,121410.0,121400.0,0.4692]
[1752503007786,0.33749422,121410.0,121390.0,0.08134711]
[1752503008004,0.33949422,121410.0,121390.0,0.08134711]
[1752503008444,0.00504,121410.0,121400.0,0.0020593]
[1752503008719,0.00504,121410.0,121400.0,0.5020593]
[1752503008939,0.00504,121410.0,121400.0,0.62916]
[1752503009194,0.00204,121410.0,121400.0,0.62916]
[1752503009419,0.00304,121410.0,121400.0,0.5]
[1752503009650,0.00304,121410.0,121400.0,0.62916]
[1752503009876,0.33949422,121410.0,121400.0,0.96916]
[1752503010082,0.33949422,121410.0,121400.0,0.34]
[1752503010292,0.33949422,121410.0,121400.0,0.46916]
[1752503010711,0.33949422,121410.0,121400.0,0.34]
[1752503010929,0.35569422,121410.0,121400.0,0.46916]
[1752503011135,0.37209422,121410.0,121400.0,0.46916]
[1752503011565,0.37209422,121410.0,121400.0,0.34]
[1752503011780,0.03764,121410.0,121400.0,0.46916]
[1752503012027,0.37209422,121410.0,121400.0,0.46916]
[1752503013599,0.33949422,121410.0,121400.0,0.46916]
[1752503014022,0.33949422,121410.0,121400.0,0.46912]
[1752503014716,0.33949422,121410.0,121400.0,0.34]
[1752503014949,0.00504,121410.0,121400.0,0.34]
[1752503015178,0.00504,121410.0,121400.0,0.46912]
[1752503015396,0.00504,121410.0,121400.0,0.977008]
[1752503015606,0.00504,121410.0,121400.0,0.928545]
[1752503016618,0.00504,121410.0,121400.0,0.799425]
[1752503016850,0.00504,121410.0,121400.0,0.757499]
[1752503017058,0.00504,121410.0,121400.0,0.745635]
[1752503017694,0.3296213,121420.0,121410.0,0.34]
[1752503017917,0.33445422,121420.0,121410.0,0.34]
[1752503018332,0.36675422,121430.0,121410.0,0.46912]
[1752503018695,0.0323,121430.0,121390.0,0.34996426]
[1752503018924,0.00150808,121430.0,121400.0,0.93049741]
[1752503019110,0.00150808,121430.0,121410.0,0.12912]
[1752503019311,0.00150808,121430.0,121420.0,0.00205896]
[1752503019955,0.00150808,121430.0,121420.0,0.42374711]
[1752503020192,0.00150808,121430.0,121420.0,1.86908511]
[1752503020391,0.00150808,121430.0,121420.0,1.73996511]
[1752503020617,0.00250808,121430.0,121420.0,1.77866111]
[1752503021110,0.00150808,121430.0,121420.0,1.64954111]
[1752503021259,0.00150808,121430.0,121420.0,0.90804211]
[1752503021638,0.00150808,121430.0,121420.0,0.90904211]
[1752503022051,0.3359623,121430.0,121420.0,0.77992211]
[1752503022233,0.3359623,121430.0,121420.0,0.41914711]
[1752503022426,0.3359623,121430.0,121420.0,0.68000411]
[1752503022644,0.00150808,121430.0,121420.0,0.80912411]
[1752503024450,0.00150808,121430.0,121420.0,0.74327695]
[1752503024650,0.00150808,121430.0,121420.0,0.602857]
[1752503024785,0.00150808,121430.0,121420.0,0.731977]
[1752503025190,0.00150808,121430.0,121420.0,0.602857]
[1752503025380,0.00150808,121430.0,121420.0,0.731977]
[1752503025862,0.00150808,121430.0,121420.0,0.69874496]
[1752503026068,0.00150808,121430.0,121420.0,0.71254496]
[1752503026187,0.00150808,121430.0,121420.0,2.33341496]
[1752503027165,0.00150808,121430.0,121420.0,2.23615596]
[1752503027365,0.00150808,121430.0,121420.0,2.55857296]
[1752503027814,0.36475422,121460.0,121420.0,2.50857296]
[1752503028021,0.36605422,121450.0,121420.0,0.43788796]
[1752503028223,0.33445422,121440.0,121430.0,0.12912]
[1752503028568,0.33445422,121440.0,121430.0,0.46912]
[1752503028944,0.33445422,121440.0,121430.0,0.581009]
[1752503029087,0.36605422,121450.0,121430.0,0.581009]
[1752503029311,0.36605422,121450.0,121430.0,0.46912]
[1752503029494,0.36605422,121450.0,121430.0,0.493804]
[1752503031375,0.36615422,121440.0,121420.0,0.001]
[1752503031588,0.36635422,121430.0,121420.0,0.001]
[1752503031797,0.36635422,121430.0,121410.0,0.04983671]
[1752503032010,0.36635422,121430.0,121420.0,0.12908]
[1752503032212,0.36635422,121430.0,121420.0,0.46908]
[1752503032417,0.36635422,121430.0,121420.0,0.48443236]
[1752503032634,0.36635422,121430.0,121420.0,0.35635236]
[1752503032851,0.36635422,121430.0,121420.0,0.14543236]
[1752503033069,0.36635422,121430.0,121420.0,0.13008]
[1752503033286,0.36635422,121430.0,121420.0,0.001]
[1752503033505,0.48433675,121430.0,121420.0,0.13008]
[1752503033992,0.44770133,121430.0,121420.0,0.13108]
[1752503034206,0.44551902,121430.0,121420.0,0.13108]
[1752503034437,0.44551902,121430.0,121420.0,0.13008]
[1752503034650,0.44551902,121430.0,121420.0,0.13108]
[1752503035318,0.45525981,121430.0,121420.0,0.002]